bitfinex-derivatives/quotes_BNBF0:USTF0_20250521
["timestamp","ask_amount","ask_price","bid_price","bid_amount"]
[1747849296181,0.99455082,664.9,663.83,0.26191408]
[1747849296389,0.99425725,664.89,663.83,0.26191408]
[1747849296580,0.96196102,664.95,663.83,0.26191408]
[1747849296782,0.99384659,664.94,663.83,0.26191408]
[1747849296985,0.96196102,664.89,663.83,0.26191408]
[1747849297182,0.99394627,664.88,663.83,0.26191408]
[1747849297381,0.96196102,664.89,663.83,0.26191408]
[1747849297579,0.99395559,664.88,663.83,0.26191408]
[1747849297779,0.96196102,664.89,663.83,0.26191408]
[1747849298083,0.96196102,664.89,663.46,0.35756176]
[1747849298380,0.96196102,665.21,663.83,0.26190225]
[1747849298576,1.42020936,665.2,663.46,0.35756176]
[1747849298777,1.42018571,665.19,663.46,0.35756176]
[1747849298983,1.42018571,665.18,663.46,0.35756176]
[1747849299182,1.42018571,665.17,663.46,0.35756176]
[1747849299383,1.42018571,665.16,663.47,0.26200282]
[1747849299587,1.42018571,665.15,663.47,0.26200282]
[1747849299785,1.42018571,665.14,663.47,0.26200282]
[1747849299983,1.42018571,665.13,663.47,0.26200282]
[1747849300184,1.10744846,664.93,663.47,0.26200282]
[1747849300383,1.42018571,664.92,663.47,0.26200282]
[1747849300579,1.42018571,664.91,663.47,0.26200282]
[1747849300785,1.42018571,664.9,663.47,0.26200282]
[1747849300985,1.42018571,664.89,663.47,0.26200282]
[1747849301283,1.42018571,664.88,663.47,0.26200282]
[1747849301484,1.95556834,664.87,663.47,0.26200282]
[1747849301680,0.99360732,664.86,663.47,0.26200282]
[1747849301883,0.99360732,664.85,663.47,0.26200282]
[1747849302083,0.99360732,664.84,663.47,0.26200282]
[1747849302387,0.99360732,664.83,663.47,0.26200282]
[1747849302587,0.99360732,664.82,663.47,0.26200282]
[1747849302782,0.99360732,664.81,663.47,0.26200282]
[1747849302984,0.99360732,664.8,663.47,0.26200282]
[1747849303189,0.99360732,664.79,663.47,0.26200282]
[1747849303388,0.99360732,664.78,663.47,0.26200282]
[1747849303687,0.99360732,664.77,663.47,0.26200282]
[1747849303881,0.99360732,664.76,663.47,0.26200282]
[1747849304087,1.95556834,664.75,662.98,0.35756176]
[1747849304291,0.99360732,664.74,662.98,0.35756176]
[1747849304488,0.99360732,664.73,662.98,0.35756176]
[1747849304692,0.99360732,664.72,662.98,0.35756176]
[1747849304890,0.99360732,664.71,662.98,0.35756176]
[1747849305091,0.99360732,664.7,662.98,0.35756176]
[1747849305291,0.99360732,664.69,662.98,0.35756176]
[1747849305491,0.99360732,664.68,662.99,0.2620551]
[1747849305689,0.99360732,664.67,662.99,0.2620551]
[1747849305886,0.99360732,664.66,662.99,0.2620551]
[1747849306087,0.96196102,664.69,662.99,0.2620551]
[1747849306793,0.96196102,664.94,662.99,0.2620551]
[1747849306988,0.98826275,664.93,662.99,0.2620551]
[1747849307196,0.98826275,664.92,662.93,0.35756176]
[1747849307394,0.98826275,664.91,662.93,0.35756176]
[1747849307601,0.98803423,664.9,662.93,0.35756176]
[1747849307795,0.98803423,664.89,662.93,0.35756176]
[1747849307995,0.98803423,664.88,662.93,0.35756176]
[1747849308291,0.98803423,664.87,662.94,0.26200577]
[1747849308493,0.96196102,664.88,662.94,0.26200577]
[1747849308694,0.98783373,664.87,662.94,0.26200577]
[1747849308896,0.9878394,664.86,662.94,0.26200577]
[1747849309197,1.94980042,664.85,662.94,0.26200577]
[1747849309397,0.9878394,664.84,662.94,0.26200577]
[1747849309597,0.9878394,664.83,662.94,0.26200577]
[1747849309795,0.9878394,664.82,662.94,0.26200577]
[1747849309994,0.9878394,664.81,662.85,0.35756176]
[1747849310191,0.96196102,664.85,662.85,0.35756176]
[1747849310591,0.96196102,665.03,662.98,0.35756176]
[1747849310798,0.9875653,665.02,662.98,0.35756176]
[1747849310998,0.96196102,665.03,662.98,0.35756176]
[1747849310999,0.9875653,665.01,662.98,0.35756176]
[1747849311200,0.9875653,665.0,662.98,0.35756176]
[1747849311398,0.9875653,664.99,662.98,0.35756176]
[1747849311693,0.9875653,664.98,662.98,0.35756176]
[1747849311899,1.94952632,664.97,662.98,0.35756176]
[1747849312093,0.9875653,664.96,662.98,0.35756176]
[1747849312294,0.9875653,664.95,662.98,0.35756176]
[1747849312495,0.9875653,664.94,662.98,0.35756176]
[1747849312698,0.9875653,664.93,662.98,0.35756176]
[1747849312901,0.9875653,664.92,662.98,0.35756176]
[1747849313202,0.9875653,664.91,662.98,0.35756176]
[1747849313401,0.96196102,664.97,662.98,0.35756176]
[1747849314102,0.96196102,664.9,663.05,0.35756176]
[1747849315105,1.10744846,665.15,663.05,0.35756176]
[1747849316503,1.45048106,665.3,662.91,0.26196041]
[1747849316504,0.96196102,665.14,663.17,0.35756176]
[1747849317706,1.10744846,665.43,663.17,0.35756176]
[1747849317707,0.96196102,665.42,663.17,0.35756176]
[1747849317909,0.98857107,665.41,663.17,0.35756176]
[1747849318107,0.98857107,665.4,663.17,0.35756176]
[1747849318407,0.98857107,665.39,663.17,0.35756176]
[1747849318607,0.98857107,665.38,663.17,0.35756176]
[1747849318809,0.98857107,665.37,663.17,0.35756176]
[1747849319006,0.98857107,665.36,663.17,0.35756176]
[1747849319207,0.98857107,665.35,663.17,0.35756176]
[1747849319404,0.98857107,665.34,663.17,0.35756176]
[1747849319602,0.96196102,665.42,663.01,0.26187565]
[1747849319603,0.98857107,665.33,663.18,0.35756176]
[1747849319803,0.98857107,665.32,663.18,0.35756176]
[1747849320109,0.98893993,665.31,663.18,0.35756176]
[1747849320312,0.98893993,665.3,663.18,0.35756176]
[1747849320512,0.98893993,665.29,663.18,0.35756176]
[1747849320713,0.98893993,665.28,663.18,0.35756176]
[1747849320909,1.95090095,665.27,663.18,0.35756176]
[1747849321109,0.98893993,665.26,663.18,0.35756176]
[1747849321312,0.98893993,665.25,663.18,0.35756176]
[1747849321512,0.98893993,665.24,663.18,0.35756176]
[1747849321707,0.96196102,665.27,663.18,0.35756176]
[1747849321708,0.98909361,665.23,663.18,0.35756176]
[1747849322012,0.98902466,665.22,663.18,0.35756176]
[1747849322214,0.98902466,665.21,663.18,0.35756176]
[1747849322513,0.98902466,665.2,663.18,0.35756176]
[1747849322709,0.98902466,665.19,663.18,0.35756176]
[1747849322913,0.98931351,665.18,663.18,0.35756176]
[1747849323114,1.45048106,665.7,663.08,0.26189831]
[1747849323115,0.98931351,665.17,663.25,0.35756176]
[1747849323311,0.98931351,665.16,663.25,0.35756176]
[1747849323511,0.98931351,665.15,663.25,0.35756176]
[1747849323716,0.98931351,665.14,663.25,0.35756176]
[1747849325119,0.98931351,665.14,662.5,0.46950281]
[1747849325120,0.96196102,665.13,663.22,0.35756176]
[1747849325418,0.98931351,665.12,663.22,0.35756176]
[1747849326518,1.95298772,665.11,663.22,0.35756176]
[1747849326817,0.9910267,665.1,663.22,0.35756176]
[1747849327018,0.9910267,665.09,663.22,0.35756176]
[1747849327218,0.9910267,665.08,663.22,0.35756176]
[1747849327519,0.9910267,665.07,663.22,0.35756176]
[1747849327719,0.9910267,665.06,663.22,0.35756176]
[1747849327918,0.9910267,665.05,663.4,0.35756176]
[1747849329321,0.9910267,665.04,663.4,0.35756176]
[1747849329621,0.9910267,665.03,663.4,0.35756176]
[1747849329922,0.9910267,665.02,663.4,0.35756176]
[1747849330128,1.41685377,665.01,663.4,0.35756176]
[1747849330321,1.41685377,665.0,663.4,0.35756176]
[1747849330517,1.41685377,664.99,663.4,0.35756176]
[1747849330721,1.41685377,664.98,663.4,0.35756176]
[1747849331023,1.41685377,664.97,663.4,0.35756176]
[1747849331222,1.10744846,664.73,663.04,0.35756176]
[1747849331424,1.41685377,664.72,663.04,0.35756176]
[1747849331618,1.41685377,664.71,663.04,0.35756176]
[1747849331821,1.41677334,664.7,663.04,0.35756176]
[1747849332018,1.41677334,664.69,663.04,0.35756176]
[1747849332219,2.37873436,664.68,663.04,0.35756176]
[1747849332419,1.41677334,664.67,663.05,0.26211135]
[1747849332623,1.41677334,664.66,663.05,0.26211135]
[1747849332821,1.41677334,664.65,663.05,0.26211135]
[1747849333016,1.41673764,664.64,663.05,0.26211135]
[1747849333225,1.41673764,664.63,663.05,0.26211135]
[1747849333523,1.41668724,664.62,663.05,0.26211135]
[1747849333725,1.41668724,664.61,663.05,0.26211135]
[1747849334019,1.41668724,664.6,663.04,0.35756176]
[1747849334219,0.96196102,664.68,663.04,0.35756176]
[1747849334220,0.99104016,664.59,663.04,0.35756176]
[1747849334425,1.10744846,664.5,662.58,0.35756176]
[1747849334625,0.99104016,664.49,662.58,0.35756176]
[1747849334820,0.99104016,664.49,663.05,0.26211037]
[1747849335019,0.99104016,664.49,662.58,0.35756176]
[1747849335925,0.96196102,664.48,662.59,0.26219133]
[1747849336126,0.99104016,664.47,662.59,0.26219133]
[1747849336726,0.96196102,664.48,662.59,0.26219133]
[1747849336921,0.99152492,664.47,662.59,0.26219133]
[1747849337121,0.96196102,664.48,662.59,0.26219133]
[1747849337519,0.96196102,664.46,662.74,0.35756176]
[1747849338628,0.96196102,664.72,662.74,0.35756176]
[1747849338821,0.99288953,664.71,662.74,0.35756176]
[1747849339026,0.99288953,664.7,662.74,0.35756176]
[1747849339222,0.96196102,664.72,662.74,0.35756176]
[1747849339223,0.99288953,664.69,662.74,0.35756176]
[1747849339427,0.99288953,664.68,662.74,0.35756176]
[1747849339624,0.99288953,664.67,662.74,0.35756176]
[1747849339823,0.99288953,664.66,662.86,0.35756176]
[1747849340027,0.99288953,664.65,662.86,0.35756176]
[1747849340228,0.99288953,664.64,662.86,0.35756176]
[1747849340522,0.99288953,664.63,662.86,0.35756176]
[1747849340725,0.99288953,664.62,662.86,0.35756176]
[1747849340927,0.99288953,664.61,662.86,0.35756176]
[1747849341132,0.99288953,664.6,662.86,0.35756176]
[1747849342225,0.96196102,664.59,662.75,0.35756176]
[1747849342422,0.99288953,664.58,662.75,0.35756176]
[1747849342930,0.96196102,664.59,662.75,0.35756176]
[1747849343130,0.96196102,664.57,662.75,0.35756176]
[1747849343925,1.10744846,664.85,662.75,0.35756176]
[1747849344228,0.99623635,664.84,663.44,0.35756176]
[1747849344429,0.99623635,664.83,663.44,0.35756176]
[1747849344623,0.99623635,664.82,663.44,0.35756176]
[1747849344824,0.99623635,664.81,663.44,0.35756176]
[1747849345028,0.99623635,664.8,663.44,0.35756176]
[1747849345226,0.99623635,664.79,663.44,0.35756176]
[1747849346734,0.96196102,664.78,663.23,0.35756176]
[1747849346929,0.99623635,664.77,663.23,0.35756176]
[1747849347733,0.96196102,664.78,663.23,0.35756176]
[1747849348131,0.96196102,665.02,663.23,0.35756176]
[1747849348430,0.99726288,665.01,663.23,0.35756176]
[1747849348631,0.99726288,665.0,663.23,0.35756176]
[1747849348830,0.99726288,664.99,663.23,0.35756176]
[1747849349026,0.99726288,664.98,663.23,0.35756176]
[1747849349231,0.99726288,664.97,663.23,0.35756176]
[1747849349435,0.99726288,664.96,663.55,0.35756176]
[1747849350833,0.99726288,664.95,663.55,0.35756176]
[1747849351030,1.9592239,664.94,663.55,0.35756176]
[1747849351233,0.99751362,664.93,663.55,0.35756176]
[1747849351533,0.99751362,664.92,663.55,0.35756176]
[1747849351733,0.99751362,664.91,663.55,0.35756176]
[1747849351935,0.99751362,664.9,663.55,0.35756176]
[1747849352133,0.99751362,664.89,663.55,0.35756176]
[1747849352336,0.99751362,664.88,663.6,0.35756176]
[1747849352529,0.99751362,664.87,663.6,0.35756176]
[1747849352730,0.99751362,664.86,663.6,0.35756176]
[1747849352935,0.96196102,664.9,663.6,0.35756176]
[1747849352936,0.99871472,664.85,663.6,0.35756176]
[1747849353136,0.99871472,664.84,663.6,0.35756176]
[1747849353334,0.96196102,664.9,663.6,0.35756176]
[1747849353533,0.99890245,664.89,663.6,0.35756176]
[1747849353736,1.10744846,665.02,663.6,0.35756176]
[1747849353937,0.99894435,665.01,663.6,0.35756176]
[1747849354143,0.99894435,665.0,663.6,0.35756176]
[1747849354333,1.10744846,665.02,663.6,0.35756176]
[1747849354334,0.99894435,664.99,663.6,0.35756176]
[1747849354539,0.99894435,664.98,663.6,0.35756176]
[1747849354736,0.99894435,664.97,663.6,0.35756176]
[1747849354939,1.42785831,664.96,663.42,0.35756176]
[1747849355137,1.42783335,664.95,663.42,0.35756176]
[1747849355334,0.99894435,664.94,663.42,0.35756176]
[1747849355538,0.99894435,664.93,663.42,0.35756176]
[1747849355732,1.9886212,664.92,663.42,0.35756176]
[1747849355938,0.99894435,664.91,663.42,0.35756176]
[1747849356141,0.99894435,664.9,663.42,0.35756176]
[1747849356334,0.99894435,664.89,663.42,0.35756176]
[1747849356532,0.99894435,664.88,663.42,0.35756176]
[1747849356735,0.99894435,664.87,663.42,0.35756176]
[1747849356937,0.99894435,664.86,663.42,0.35756176]
[1747849357136,0.99917821,664.85,663.42,0.35756176]
[1747849357338,0.99917821,664.84,663.38,0.35756176]
[1747849357538,0.99917821,664.83,663.38,0.35756176]
[1747849357739,0.99917821,664.82,663.38,0.35756176]
[1747849357939,0.99917821,664.81,663.38,0.35756176]
[1747849358141,0.99917821,664.8,663.38,0.35756176]
[1747849358342,0.99917821,664.79,663.38,0.35756176]
[1747849358544,0.99917821,664.78,663.38,0.35756176]
[1747849358752,0.98967685,664.77,663.38,0.35756176]
[1747849360145,0.98967685,664.76,663.44,0.35756176]
[1747849361149,0.98967685,664.75,663.44,0.35756176]
[1747849362446,0.98967685,664.74,663.37,0.35756176]
[1747849363547,1.10744846,665.1,663.37,0.35756176]
[1747849363752,0.99904017,665.09,663.37,0.35756176]
[1747849363950,0.99904017,665.08,663.37,0.35756176]
[1747849364153,0.99904017,665.07,663.37,0.35756176]
[1747849364345,0.99904017,665.06,663.37,0.35756176]
[1747849364549,0.99904017,665.05,663.37,0.35756176]
[1747849364750,0.99904017,665.04,663.37,0.35756176]
[1747849364947,0.99904017,665.03,663.3,0.35756176]
[1747849365150,0.99904017,665.02,663.3,0.35756176]
[1747849365346,2.09714577,665.05,663.3,0.35756176]
[1747849365347,0.99904017,665.01,663.3,0.35756176]
[1747849365548,0.99904017,665.0,663.3,0.61953105]
[1747849365745,0.99904017,664.99,663.3,0.61953105]
[1747849365950,0.99904017,664.98,663.3,0.61953105]
[1747849366150,1.98873748,664.97,663.3,0.61953105]
[1747849366347,0.99904017,664.96,663.3,0.61953105]
[1747849366550,0.99904017,664.95,663.3,0.61953105]
[1747849366851,0.98969731,664.97,663.3,0.61953105]
[1747849367054,0.99941501,664.96,663.3,0.61953105]
[1747849367247,0.98969731,664.97,663.3,0.61953105]
[1747849367953,0.98969731,665.04,663.66,0.35756176]
[1747849369154,0.98969731,665.26,663.66,0.35756176]
[1747849369656,0.99906769,665.25,663.66,0.35756176]
[1747849369950,0.99906769,665.24,663.66,0.35756176]
[1747849370155,0.99906769,665.23,663.66,0.35756176]
[1747849370347,0.98969731,665.26,663.66,0.35756176]
[1747849370552,0.99852903,665.25,663.66,0.35756176]
[1747849370755,0.98969731,665.22,663.71,0.35756176]
[1747849370957,0.99829008,665.21,663.71,0.35756176]
[1747849371154,0.99829008,665.2,663.71,0.35756176]
[1747849371349,0.99829008,665.19,663.71,0.35756176]
[1747849371555,0.99829008,665.18,663.71,0.35756176]
[1747849371748,0.99829008,665.17,663.71,0.35756176]
[1747849371949,0.98969731,665.18,663.71,0.35756176]
[1747849372148,0.99806431,665.17,663.71,0.35756176]
[1747849372350,0.99793638,665.16,663.71,0.35756176]
[1747849372654,0.98969731,665.18,663.71,0.35756176]
[1747849372851,0.99787346,665.17,663.71,0.35756176]
[1747849373050,0.99788656,665.16,663.83,0.35756176]
[1747849373248,1.10744846,665.31,663.83,0.35756176]
[1747849373249,1.98758387,665.15,663.83,0.35756176]
[1747849373451,0.99788656,665.14,663.83,0.35756176]
[1747849374258,0.98969731,665.13,663.83,0.35756176]
[1747849374451,0.99788656,665.12,663.83,0.35756176]
[1747849375558,0.99788656,665.11,663.83,0.35756176]
[1747849375758,0.99788656,665.1,663.67,0.35756176]
[1747849376054,0.99803386,665.09,663.67,0.35756176]
[1747849376260,0.99803386,665.08,663.67,0.35756176]
[1747849376459,0.99803386,665.07,663.67,0.35756176]
[1747849376661,0.99803386,665.06,663.67,0.35756176]
[1747849376860,0.99808164,665.05,663.67,0.35756176]
[1747849377061,0.99808164,665.04,663.67,0.35756176]
[1747849377262,0.99808164,665.03,663.67,0.35756176]
[1747849377462,0.99808164,665.02,663.67,0.35756176]
[1747849377663,0.99808164,665.01,663.67,0.35756176]
[1747849377863,0.99808164,665.0,663.67,0.35756176]
[1747849378057,0.99808164,664.99,663.67,0.35756176]
[1747849378262,0.99808164,664.98,663.67,0.35756176]
[1747849378463,0.99808164,664.98,663.6,0.26183624]
[1747849378464,0.99808164,664.97,663.6,0.26183624]
[1747849378657,0.99808164,664.96,663.6,0.26183624]
[1747849378859,0.99808164,664.95,663.6,0.26183624]
[1747849379061,0.99808164,664.94,663.6,0.26183624]
[1747849379263,0.99808164,664.93,663.32,0.35756176]
[1747849379463,0.99808164,664.92,663.32,0.35756176]
[1747849379663,1.98777895,664.91,663.32,0.35756176]
[1747849379863,0.99808164,664.9,663.32,0.35756176]
[1747849380364,0.99808164,664.9,663.33,0.26195351]
[1747849380564,0.99820865,664.89,663.33,0.26195351]
[1747849380760,0.98969731,664.91,663.33,0.26195351]
[1747849380958,0.98969731,664.89,663.65,0.35756176]
[1747849381864,1.10744846,665.09,663.65,0.35756176]
[1747849382063,0.99802113,665.08,663.65,0.35756176]
[1747849382260,0.99802113,665.07,663.65,0.35756176]
[1747849382458,0.99802113,665.06,663.65,0.35756176]
[1747849382759,0.99802113,665.05,663.65,0.35756176]
[1747849382958,0.99802113,665.04,663.33,0.35756176]
[1747849383159,0.99802113,665.03,663.33,0.35756176]
[1747849383457,0.99802113,665.02,663.46,0.26194858]
[1747849383663,0.99802113,665.01,663.33,0.35756176]
[1747849383859,0.99802113,665.0,663.33,0.35756176]
[1747849384062,0.99802113,664.99,663.33,0.35756176]
[1747849384264,0.99802113,664.98,663.33,0.35756176]
[1747849384567,0.99802113,664.97,663.34,0.26194858]
[1747849384761,0.99802113,664.96,663.34,0.26194858]
[1747849384966,0.99802113,664.95,663.34,0.26194858]
[1747849385166,0.99802113,664.94,663.34,0.26194858]
[1747849385366,0.99802113,664.93,663.34,0.26194858]
[1747849385670,0.98826609,664.98,663.34,0.26194858]
[1747849385671,0.99802113,664.92,663.34,0.26194858]
[1747849385867,0.99802113,664.91,663.34,0.26194858]
[1747849386069,0.99802113,664.9,663.34,0.61951034]
[1747849386272,1.42632593,664.89,663.34,0.61951034]
[1747849386472,1.42632593,664.88,663.34,0.61951034]
[1747849386771,1.42632593,664.87,663.34,0.61951034]
[1747849387072,1.42632593,664.86,663.34,0.61951034]
[1747849387265,1.42632593,664.85,663.34,0.61951034]
[1747849387466,1.42632593,664.84,663.34,0.61951034]
[1747849387670,1.42632593,664.83,663.34,0.61951034]
[1747849387970,1.42632593,664.82,663.34,0.61951034]
[1747849388171,0.98826609,664.87,663.34,0.61951034]
[1747849388172,1.42632593,664.81,663.34,0.35756176]
[1747849388372,1.42632593,664.8,663.34,0.35756176]
[1747849388572,0.99802113,664.79,663.34,0.61953795]
[1747849388774,1.10744846,664.68,663.34,0.26197619]
[1747849388976,0.99802113,664.67,663.34,0.26197619]
[1747849389167,1.10744846,664.68,663.34,0.26197619]
[1747849389774,0.98826609,664.67,663.34,0.26197619]
[1747849390974,1.10744846,664.96,663.51,0.35756176]
[1747849391175,0.99726832,664.95,663.51,0.35756176]
[1747849391474,0.99775439,664.94,663.51,0.35756176]
[1747849391668,0.99775439,664.93,663.51,0.35756176]
[1747849391868,0.99775439,664.92,663.51,0.35756176]
[1747849392073,0.99775439,664.91,663.51,0.35756176]
[1747849392371,1.99294997,664.9,663.51,0.35756176]
[1747849392568,0.99519558,664.9,663.51,0.35756176]
[1747849393272,1.45048106,665.09,663.76,0.35756176]
[1747849393476,1.10744846,665.19,663.76,0.35756176]
[1747849393675,0.99954192,665.18,663.76,0.35756176]
[1747849393972,0.99954192,665.17,663.76,0.35756176]
[1747849394170,0.99954192,665.16,663.76,0.35756176]
[1747849394376,1.10744846,665.19,663.76,0.35756176]
[1747849394572,0.99560553,665.15,663.76,0.35756176]
[1747849394776,1.00010461,665.14,663.76,0.35756176]
[1747849394976,1.00011784,665.13,663.76,0.35756176]
[1747849395177,1.00006869,665.12,663.76,0.35756176]
[1747849395377,1.00041697,665.11,663.76,0.35756176]
[1747849395677,1.00041697,665.1,663.76,0.35756176]
[1747849395978,1.00041697,665.09,663.76,0.35756176]
[1747849396177,1.00041697,665.08,663.84,0.35756176]
[1747849396477,1.00041697,665.07,663.84,0.35756176]
[1747849396777,1.00041697,665.06,663.84,0.35756176]
[1747849396973,1.00041697,665.05,663.84,0.35756176]
[1747849397172,1.00041697,665.04,663.84,0.35756176]
[1747849397374,1.9960225,665.03,663.84,0.35756176]
[1747849397573,1.00041697,665.02,663.84,0.35756176]
[1747849397773,1.00041697,665.01,663.84,0.35756176]
[1747849397978,1.00041697,665.0,663.84,0.35756176]
[1747849398177,0.99560553,665.03,663.84,0.35756176]
[1747849398371,1.00110332,665.02,663.84,0.35756176]
[1747849398572,1.00148699,665.01,663.84,0.35756176]
[1747849398778,1.00148699,665.0,663.84,0.35756176]
[1747849399073,1.00148699,664.99,663.68,0.35756176]
[1747849399278,1.00148699,664.98,663.68,0.35756176]
[1747849399479,1.00148699,664.97,663.68,0.35756176]
[1747849399679,1.00148699,664.96,663.68,0.35756176]
[1747849399879,1.00148699,664.95,663.68,0.35756176]
[1747849400080,1.00148699,664.94,663.68,0.35756176]
[1747849400279,0.99560553,665.0,663.68,0.35756176]
[1747849400578,0.99560553,664.93,663.68,0.35756176]
[1747849401781,1.10744846,665.21,663.88,0.35756176]
[1747849401974,1.00212176,665.2,663.88,0.35756176]
[1747849402176,1.00217138,665.19,663.88,0.35756176]
[1747849402374,1.00217138,665.18,663.88,0.35756176]
[1747849402572,1.00217138,665.17,663.88,0.35756176]
[1747849402774,1.00217138,665.16,663.88,0.35756176]
[1747849402977,1.99777691,665.15,663.88,0.35756176]
[1747849403274,1.00217138,665.14,663.88,0.35756176]
[1747849403474,1.00217138,665.13,663.88,0.35756176]
[1747849403680,1.00217138,665.12,663.88,0.35756176]
[1747849403876,1.00217138,665.11,663.88,0.35756176]
[1747849404077,1.00217138,665.1,663.88,0.35756176]
[1747849404273,1.00217138,665.09,663.88,0.35756176]
[1747849404480,1.00217138,665.08,664.16,0.35756176]
[1747849404679,1.00217138,665.07,664.16,0.35756176]
[1747849404877,1.00217138,665.06,664.16,0.35756176]
[1747849405074,1.00217138,665.05,664.16,0.35756176]
[1747849405276,1.99777691,665.04,664.16,0.35756176]
[1747849405576,1.00217138,665.03,664.16,0.35756176]
[1747849405979,1.00217138,665.02,664.16,0.35756176]
[1747849406179,1.00217138,665.01,664.16,0.35756176]
[1747849406378,1.00217138,665.0,664.16,0.35756176]
[1747849406578,1.00217138,664.99,664.03,0.35756176]
[1747849406779,1.00217138,664.98,664.03,0.35756176]
[1747849406974,1.00217138,664.97,664.03,0.35756176]
[1747849407175,1.00325836,664.96,664.03,0.35756176]
[1747849407381,1.00325836,664.95,664.03,0.35756176]
[1747849407581,1.99886389,664.94,664.03,0.35756176]
[1747849407879,1.00325836,664.93,664.03,0.35756176]
[1747849408081,1.00325836,664.92,664.03,0.35756176]
[1747849408276,1.00325836,664.91,664.03,0.35756176]
[1747849408481,1.00325836,664.9,664.03,0.35756176]
[1747849408681,1.43394724,664.89,664.03,0.35756176]
[1747849408881,1.00325836,664.88,664.03,0.35756176]
[1747849409082,1.43388937,664.87,664.03,0.35756176]
[1747849409282,1.43388937,664.86,663.61,0.35756176]
[1747849409477,1.00325836,664.85,663.61,0.35756176]
[1747849409681,1.43386457,664.84,663.83,0.26192887]
[1747849409879,1.43386457,664.83,663.61,0.35756176]
[1747849410085,1.00325836,664.82,663.61,0.35756176]
[1747849410281,1.00325836,664.81,663.61,0.35756176]
[1747849410483,1.00325836,664.8,663.61,0.35756176]
[1747849410682,1.00325836,664.79,663.62,0.26193577]
[1747849410879,1.00325836,664.78,663.62,0.26193577]
[1747849411077,1.00258238,664.77,663.62,0.26193577]
[1747849411280,1.00258238,664.76,663.62,0.26193577]
[1747849411477,1.00258238,664.75,663.62,0.26193577]
[1747849411781,1.00258238,664.74,663.62,0.26193577]
[1747849411983,1.99818791,664.73,663.62,0.26193577]
[1747849412278,1.00258238,664.72,663.71,0.35756176]
[1747849412482,1.00258238,664.71,663.71,0.35756176]
[1747849412678,1.00258238,664.7,663.71,0.35756176]
[1747849412879,1.00258238,664.69,663.71,0.35756176]
[1747849413080,1.00258238,664.68,663.71,0.35756176]
[1747849413280,0.99560553,664.68,663.71,0.35756176]
[1747849414186,0.99560553,664.67,663.65,0.35756176]
[1747849414485,1.00276985,664.66,663.65,0.35756176]
[1747849414684,1.00276985,664.65,663.65,0.35756176]
[1747849414986,1.00276985,664.64,663.65,0.35756176]
[1747849415184,1.00276985,664.63,663.65,0.35756176]
[1747849415384,1.00276985,664.62,663.65,0.35756176]
[1747849415588,1.99837538,664.61,663.65,0.35756176]
[1747849415885,1.00276985,664.6,663.65,0.35756176]
[1747849416082,0.99560553,664.61,663.65,0.35756176]
[1747849416280,1.00213022,664.6,663.65,0.35756176]
[1747849416483,0.99560553,664.61,663.65,0.35756176]
[1747849416681,1.00199178,664.6,663.65,0.35756176]
[1747849416889,1.00198241,664.59,663.65,0.35756176]
[1747849417081,1.00198241,664.58,663.63,0.26201367]
[1747849417284,1.00198241,664.57,663.63,0.26201367]
[1747849417482,1.00198241,664.56,663.63,0.26201367]
[1747849417682,1.00164148,664.55,663.63,0.26201367]
[1747849417885,0.99560553,664.6,663.63,0.26201367]
[1747849418082,1.00172665,664.59,663.53,0.35756176]
[1747849418286,1.99733218,664.58,663.53,0.35756176]
[1747849418486,1.00172665,664.57,663.53,0.35756176]
[1747849418682,1.00172665,664.56,663.53,0.35756176]
[1747849418982,1.00172665,664.55,663.53,0.35756176]
[1747849419186,1.00172665,664.54,663.53,0.35756176]
[1747849419487,1.00172665,664.53,663.54,0.26203833]
[1747849419688,1.00172665,664.52,663.54,0.26203833]
[1747849419882,1.00172665,664.51,663.54,0.26203833]
[1747849420090,1.00172665,664.5,663.54,0.26203833]
[1747849420289,1.00172665,664.49,663.54,0.26203833]
[1747849420583,0.99560553,664.54,663.54,0.26203833]
[1747849420783,0.99560553,664.48,663.54,0.26203833]
[1747849421190,0.99560553,664.48,663.32,0.35756176]
[1747849422390,0.99560553,664.47,663.33,0.26204129]
[1747849423592,0.99560553,664.46,663.33,0.26204129]
[1747849424199,0.99560553,664.46,663.28,0.35756176]
[1747849425091,0.99560553,664.45,663.29,0.26207286]
[1747849425294,0.99974642,664.44,663.29,0.26207286]
[1747849425492,0.99560553,664.45,663.29,0.26207286]
[1747849425690,0.99945162,664.44,663.29,0.26207286]
[1747849425995,0.99560553,664.45,663.29,0.26207286]
[1747849426191,1.9951366,664.44,663.29,0.26207286]
[1747849426395,0.99560553,664.44,663.29,0.26207286]
[1747849426592,0.99926949,664.43,663.29,0.26207286]
[1747849426900,0.99926949,664.42,663.29,0.26207286]
[1747849427095,0.99926949,664.41,663.29,0.26207286]
[1747849427295,0.99926949,664.4,663.29,0.26207286]
[1747849427493,0.99926949,664.39,663.29,0.26207286]
[1747849427696,0.99926949,664.38,663.29,0.26207286]
[1747849427897,0.99926949,664.37,663.29,0.26207286]
[1747849428097,0.99926949,664.36,663.29,0.26207286]
[1747849428296,0.99926949,664.35,663.29,0.26207286]
[1747849428494,0.99926949,664.34,663.29,0.26207286]
[1747849428692,0.99926949,664.33,663.29,0.26207286]
[1747849428896,0.99926949,664.32,663.29,0.26207286]